[Event "*** Titled Tuesday Blitz"]
[Site "Chess.com"]
[Date "2020.04.28"]
[Round "7"]
[White "Duong57"]
[Black "Corpescador"]
[Result "0-1"]
[WhiteElo "2195"]
[BlackElo "2359"]
[TimeControl "180+1"]
[EndTime "11:19:27 PDT"]
[Termination "Corpescador won on time"]

1. d4 {[%clk 0:03:00.9]} 1... Nf6 {[%clk 0:02:58.4]} 2. c4 {[%clk 0:03:01.7]}
2... e6 {[%clk 0:02:58.1]} 3. Nc3 {[%clk 0:03:02]} 3... Bb4 {[%clk 0:02:57.8]}
4. Qc2 {[%clk 0:03:02.2]} 4... O-O {[%clk 0:02:57.1]} 5. a3 {[%clk 0:03:01.9]}
5... Bxc3+ {[%clk 0:02:57.3]} 6. Qxc3 {[%clk 0:03:02.4]} 6... d5 {[%clk
0:02:57.5]} 7. Bg5 {[%clk 0:03:00.2]} 7... dxc4 {[%clk 0:02:55.3]} 8. Qxc4
{[%clk 0:02:56.8]} 8... b6 {[%clk 0:02:55.1]} 9. Nf3 {[%clk 0:02:29.3]} 9... Ba6
{[%clk 0:02:53]} 10. Qa4 {[%clk 0:02:28.6]} 10... Qd7 {[%clk 0:02:35.8]} 11.
Qxd7 {[%clk 0:02:27.4]} 11... Nbxd7 {[%clk 0:02:32.6]} 12. e3 {[%clk 0:02:25.5]}
12... Bxf1 {[%clk 0:02:31.7]} 13. Kxf1 {[%clk 0:02:25.4]} 13... c5 {[%clk
0:02:27.5]} 14. Ke2 {[%clk 0:02:22.2]} 14... Ne4 {[%clk 0:02:10.6]} 15. Bh4
{[%clk 0:02:17.8]} 15... f6 {[%clk 0:01:50.2]} 16. Rhd1 {[%clk 0:02:13]} 16...
Rfd8 {[%clk 0:01:44.9]} 17. Rac1 {[%clk 0:01:54.3]} 17... Rac8 {[%clk 0:01:31]}
18. d5 {[%clk 0:01:38]} 18... e5 {[%clk 0:01:18]} 19. Rc4 {[%clk 0:01:35.9]}
19... Nd6 {[%clk 0:01:17.3]} 20. Rc2 {[%clk 0:01:34.5]} 20... c4 {[%clk
0:01:15.1]} 21. g4 {[%clk 0:01:31.8]} 21... h6 {[%clk 0:01:05.8]} 22. Ne1 {[%clk
0:01:27.4]} 22... b5 {[%clk 0:01:02.8]} 23. f3 {[%clk 0:01:25.6]} 23... e4
{[%clk 0:01:00.1]} 24. Bg3 {[%clk 0:01:24.7]} 24... Nc5 {[%clk 0:00:59.5]} 25.
Bxd6 {[%clk 0:01:14.6]} 25... Rxd6 {[%clk 0:00:55.7]} 26. fxe4 {[%clk 0:01:09]}
26... Nxe4 {[%clk 0:00:53]} 27. Rd4 {[%clk 0:01:09.2]} 27... Re8 {[%clk
0:00:49.6]} 28. Nf3 {[%clk 0:00:55.3]} 28... Nc5 {[%clk 0:00:44.3]} 29. Rd1
{[%clk 0:00:53.1]} 29... Re4 {[%clk 0:00:41.8]} 30. h3 {[%clk 0:00:51.6]} 30...
Nb3 {[%clk 0:00:35.4]} 31. Rc3 {[%clk 0:00:37.9]} 31... a6 {[%clk 0:00:33.4]}
32. Rc2 {[%clk 0:00:23.8]} 32... Kh7 {[%clk 0:00:29.9]} 33. Nd2 {[%clk
0:00:23.2]} 33... Nxd2 {[%clk 0:00:30]} 34. Rcxd2 {[%clk 0:00:23.1]} 34... h5
{[%clk 0:00:30.9]} 35. Kf3 {[%clk 0:00:22.2]} 35... Re5 {[%clk 0:00:29.7]} 36.
e4 {[%clk 0:00:22]} 36... Kg6 {[%clk 0:00:26.2]} 37. Kf4 {[%clk 0:00:21.3]}
37... Kf7 {[%clk 0:00:25.1]} 38. Rd4 {[%clk 0:00:15]} 38... Ke7 {[%clk
0:00:23.8]} 39. a4 {[%clk 0:00:14.5]} 39... g5+ {[%clk 0:00:23.1]} 40. Kf3
{[%clk 0:00:14.1]} 40... Kd7 {[%clk 0:00:21.7]} 41. axb5 {[%clk 0:00:14.1]}
41... hxg4+ {[%clk 0:00:20.6]} 42. hxg4 {[%clk 0:00:13.6]} 42... axb5 {[%clk
0:00:21.5]} 43. Ra1 {[%clk 0:00:13.9]} 43... Rb6 {[%clk 0:00:20.7]} 44. Ra7+
{[%clk 0:00:13.2]} 44... Kd6 {[%clk 0:00:20.7]} 45. Rf7 {[%clk 0:00:13.4]} 45...
Kc5 {[%clk 0:00:20.5]} 46. Rd2 {[%clk 0:00:12.1]} 46... Rd6 {[%clk 0:00:20.6]}
47. Rc7+ {[%clk 0:00:11]} 47... Kb4 {[%clk 0:00:20.9]} 48. Rf7 {[%clk
0:00:07.2]} 48... Kb3 {[%clk 0:00:20.5]} 49. Rc7 {[%clk 0:00:05.3]} 49... b4
{[%clk 0:00:20.4]} 50. Ke3 {[%clk 0:00:04.5]} 50... Re8 {[%clk 0:00:19.3]} 51.
Kd4 {[%clk 0:00:03.5]} 51... Rdd8 {[%clk 0:00:17]} 52. Re2 {[%clk 0:00:02.9]}
52... Rc8 {[%clk 0:00:16.2]} 53. Ra7 {[%clk 0:00:02.4]} 53... c3 {[%clk
0:00:13.3]} 54. bxc3 {[%clk 0:00:01.7]} 54... Rc4+ {[%clk 0:00:13.9]} 55. Kd3
{[%clk 0:00:01.8]} 55... Rxc3+ {[%clk 0:00:14.1]} 56. Kd4 {[%clk 0:00:02]} 56...
Rc4+ {[%clk 0:00:14.4]} 57. Kd3 {[%clk 0:00:01.9]} 57... Rec8 {[%clk 0:00:14]}
0-1

[Event "*** Titled Tuesday Blitz"]
[Site "Chess.com"]
[Date "2020.04.28"]
[Round "7"]
[White "UCantHandleDenker"]
[Black "dzhumagaliev"]
[Result "1-0"]
[WhiteElo "2572"]
[BlackElo "2723"]
[TimeControl "180+1"]
[EndTime "11:19:30 PDT"]
[Termination "UCantHandleDenker won by resignation"]

1. Nf3 {[%clk 0:02:59.2]} 1... h5 {[%clk 0:02:59.6]} 2. h4 {[%clk 0:02:56.5]}
2... d5 {[%clk 0:02:59.1]} 3. d3 {[%clk 0:02:55.9]} 3... Nf6 {[%clk 0:03:00]} 4.
g3 {[%clk 0:02:56.2]} 4... Bg4 {[%clk 0:02:59.6]} 5. Bg2 {[%clk 0:02:56.3]} 5...
c5 {[%clk 0:02:58.2]} 6. O-O {[%clk 0:02:56.2]} 6... Nc6 {[%clk 0:02:58.7]} 7.
c4 {[%clk 0:02:54.2]} 7... d4 {[%clk 0:02:59]} 8. e3 {[%clk 0:02:47.4]} 8... e6
{[%clk 0:02:54.6]} 9. exd4 {[%clk 0:02:43.1]} 9... cxd4 {[%clk 0:02:55.5]} 10.
Nbd2 {[%clk 0:02:33.9]} 10... Be7 {[%clk 0:02:53.8]} 11. a3 {[%clk 0:02:33.6]}
11... a5 {[%clk 0:02:53.2]} 12. Rb1 {[%clk 0:02:33.9]} 12... O-O {[%clk
0:02:51.8]} 13. Re1 {[%clk 0:02:34.3]} 13... Nd7 {[%clk 0:02:50.4]} 14. Qc2
{[%clk 0:02:26.5]} 14... Bf5 {[%clk 0:02:44.8]} 15. Ne4 {[%clk 0:02:22.6]} 15...
a4 {[%clk 0:02:42.5]} 16. Nfg5 {[%clk 0:02:19.4]} 16... Qc7 {[%clk 0:02:34.9]}
17. Bf4 {[%clk 0:02:18.1]} 17... e5 {[%clk 0:02:35.2]} 18. Bd2 {[%clk
0:02:17.6]} 18... f6 {[%clk 0:02:30.9]} 19. Nh3 {[%clk 0:02:10.8]} 19... Rfe8
{[%clk 0:02:14.1]} 20. Qd1 {[%clk 0:02:01.6]} 20... Bg4 {[%clk 0:02:11.9]} 21.
f3 {[%clk 0:01:57.7]} 21... Be6 {[%clk 0:02:04.7]} 22. Nhf2 {[%clk 0:01:57]}
22... Nf8 {[%clk 0:01:59.4]} 23. f4 {[%clk 0:01:56]} 23... Bf7 {[%clk
0:01:41.6]} 24. f5 {[%clk 0:01:53.3]} 24... Bd8 {[%clk 0:01:25.7]} 25. g4 {[%clk
0:01:52.7]} 25... hxg4 {[%clk 0:01:23.5]} 26. Qxg4 {[%clk 0:01:52.1]} 26... Nh7
{[%clk 0:01:20.9]} 27. Bh6 {[%clk 0:01:40.6]} 27... g6 {[%clk 0:00:52.2]} 28.
fxg6 {[%clk 0:01:38.3]} 28... Be6 {[%clk 0:00:52.6]} 29. gxh7+ {[%clk
0:01:31.4]} 29... Kxh7 {[%clk 0:00:53.5]} 30. Qh5 {[%clk 0:01:22.9]} 30... Bf7
{[%clk 0:00:53.1]} 31. Nxf6+ {[%clk 0:00:52.6]} 31... Bxf6 {[%clk 0:00:48.6]}
32. Qf5+ {[%clk 0:00:28.4]} 32... Bg6 {[%clk 0:00:47.5]} 33. Qxf6 {[%clk
0:00:28.4]} 33... Kxh6 {[%clk 0:00:44.7]} 34. Qg5+ {[%clk 0:00:28.1]} 34... Kh7
{[%clk 0:00:39.1]} 35. Ng4 {[%clk 0:00:27.2]} 35... Qg7 {[%clk 0:00:27.4]} 36.
Nf6+ {[%clk 0:00:25.6]} 36... Kh8 {[%clk 0:00:27.5]} 37. Nxe8 {[%clk 0:00:25.6]}
37... Rxe8 {[%clk 0:00:26.2]} 38. Be4 {[%clk 0:00:23.5]} 38... Bxe4 {[%clk
0:00:25.8]} 39. Qxg7+ {[%clk 0:00:23.4]} 39... Kxg7 {[%clk 0:00:25.6]} 40. Rxe4
{[%clk 0:00:24.3]} 40... Kf6 {[%clk 0:00:24.8]} 41. Rf1+ {[%clk 0:00:24.7]}
41... Ke6 {[%clk 0:00:25.1]} 42. h5 {[%clk 0:00:23.9]} 42... Rh8 {[%clk
0:00:25.6]} 43. Rh4 {[%clk 0:00:23.9]} 43... Rh6 {[%clk 0:00:26.2]} 44. Kh2
{[%clk 0:00:22.7]} 44... Ne7 {[%clk 0:00:26.2]} 45. Kh3 {[%clk 0:00:21.1]} 45...
Nf5 {[%clk 0:00:25.3]} 46. Rxf5 {[%clk 0:00:16.9]} 46... Kxf5 {[%clk 0:00:24.9]}
47. Kg3 {[%clk 0:00:17.5]} 47... Kg5 {[%clk 0:00:23.8]} 48. Rg4+ {[%clk
0:00:17.9]} 48... Kf5 {[%clk 0:00:21.8]} 49. Rh4 {[%clk 0:00:16.1]} 49... b6
{[%clk 0:00:20.1]} 50. Kf3 {[%clk 0:00:15.2]} 50... Kg5 {[%clk 0:00:18.2]} 51.
Re4 {[%clk 0:00:15.3]} 51... Kf6 {[%clk 0:00:17.6]} 52. Rh4 {[%clk 0:00:14.6]}
52... Kf5 {[%clk 0:00:17.5]} 53. Rh3 {[%clk 0:00:14.8]} 53... e4+ {[%clk
0:00:11]} 54. dxe4+ {[%clk 0:00:14.4]} 54... Ke5 {[%clk 0:00:11.8]} 55. Rh4
{[%clk 0:00:13.9]} 55... Rf6+ {[%clk 0:00:11.5]} 56. Ke2 {[%clk 0:00:13.9]}
56... Rh6 {[%clk 0:00:11.3]} 57. Kd3 {[%clk 0:00:14.1]} 57... Rf6 {[%clk
0:00:05.2]} 58. h6 {[%clk 0:00:14.5]} 58... Rf3+ {[%clk 0:00:05.3]} 59. Ke2
{[%clk 0:00:14.7]} 59... Rb3 {[%clk 0:00:02.4]} 60. h7 {[%clk 0:00:14.8]} 60...
Rxb2+ {[%clk 0:00:03.3]} 61. Kd3 {[%clk 0:00:14.8]} 61... Rb3+ {[%clk
0:00:03.7]} 62. Kc2 {[%clk 0:00:15.1]} 62... d3+ {[%clk 0:00:03.5]} 63. Kd2
{[%clk 0:00:14.7]} 1-0

[Event "*** Titled Tuesday Blitz"]
[Site "Chess.com"]
[Date "2020.04.28"]
[Round "7"]
[White "Kildepiotr"]
[Black "Maybe00"]
[Result "0-1"]
[WhiteElo "2569"]
[BlackElo "2770"]
[TimeControl "180+1"]
[EndTime "11:19:32 PDT"]
[Termination "Maybe00 won on time"]

1. Nf3 {[%clk 0:03:00.9]} 1... d5 {[%clk 0:02:59.8]} 2. g3 {[%clk 0:03:00.7]}
2... c6 {[%clk 0:03:00.1]} 3. Bg2 {[%clk 0:03:00.7]} 3... Bg4 {[%clk 0:03:00.1]}
4. O-O {[%clk 0:03:00.9]} 4... e6 {[%clk 0:03:00.4]} 5. d3 {[%clk 0:03:01.3]}
5... Bd6 {[%clk 0:02:59.7]} 6. Nbd2 {[%clk 0:03:01.8]} 6... Ne7 {[%clk
0:02:59.7]} 7. e4 {[%clk 0:03:01.7]} 7... Nd7 {[%clk 0:02:59.4]} 8. h3 {[%clk
0:03:01.4]} 8... Bh5 {[%clk 0:02:59.1]} 9. Qe1 {[%clk 0:03:00]} 9... O-O {[%clk
0:02:59.1]} 10. Nh4 {[%clk 0:02:59.3]} 10... Ng6 {[%clk 0:02:55.4]} 11. Nxg6
{[%clk 0:02:58.5]} 11... Bxg6 {[%clk 0:02:56.3]} 12. f4 {[%clk 0:02:56.3]} 12...
dxe4 {[%clk 0:02:53.8]} 13. dxe4 {[%clk 0:02:56.1]} 13... f6 {[%clk 0:02:53.4]}
14. Nc4 {[%clk 0:02:54.5]} 14... Bc5+ {[%clk 0:02:52.3]} 15. Be3 {[%clk
0:02:54.1]} 15... b5 {[%clk 0:02:50.2]} 16. Nd2 {[%clk 0:02:52.2]} 16... Qb6
{[%clk 0:02:49.6]} 17. Rf3 {[%clk 0:02:44.5]} 17... Rad8 {[%clk 0:02:48.2]} 18.
Kh2 {[%clk 0:02:43.4]} 18... Bxe3 {[%clk 0:02:48.3]} 19. Rxe3 {[%clk 0:02:40.5]}
19... Nc5 {[%clk 0:02:47.5]} 20. b3 {[%clk 0:02:31.6]} 20... a5 {[%clk
0:02:45.2]} 21. Nf3 {[%clk 0:02:26.6]} 21... Bf7 {[%clk 0:02:40.4]} 22. e5
{[%clk 0:02:25.4]} 22... f5 {[%clk 0:02:38.5]} 23. Ng5 {[%clk 0:02:01.1]} 23...
h6 {[%clk 0:02:37.7]} 24. Nxf7 {[%clk 0:02:00.8]} 24... Rxf7 {[%clk 0:02:38.6]}
25. Rd1 {[%clk 0:02:00.4]} 25... Rxd1 {[%clk 0:02:31.7]} 26. Qxd1 {[%clk
0:02:01.3]} 26... Rd7 {[%clk 0:02:32.1]} 27. Qh5 {[%clk 0:02:01.3]} 27... Rf7
{[%clk 0:02:25.3]} 28. Re1 {[%clk 0:01:55.1]} 28... Ne4 {[%clk 0:02:17]} 29.
Bxe4 {[%clk 0:01:54.2]} 29... fxe4 {[%clk 0:02:17.3]} 30. Kg2 {[%clk 0:01:46.7]}
30... Qc5 {[%clk 0:02:03.4]} 31. Qe2 {[%clk 0:01:45.8]} 31... Rd7 {[%clk
0:02:03.3]} 32. Qxe4 {[%clk 0:01:37.3]} 32... Rd2+ {[%clk 0:02:01.8]} 33. Re2
{[%clk 0:01:37]} 33... Rd1 {[%clk 0:01:56.5]} 34. h4 {[%clk 0:01:30.4]} 34... h5
{[%clk 0:01:55.1]} 35. Rf2 {[%clk 0:01:23.5]} 35... b4 {[%clk 0:01:34.1]} 36.
Qf3 {[%clk 0:01:14.5]} 36... Qd5 {[%clk 0:01:24.8]} 37. Qxd5 {[%clk 0:01:13.5]}
37... cxd5 {[%clk 0:01:25.7]} 38. Kf3 {[%clk 0:01:06.7]} 38... Kf7 {[%clk
0:01:23.4]} 39. Ke3 {[%clk 0:01:01.2]} 39... Kg6 {[%clk 0:01:18.8]} 40. Rd2
{[%clk 0:00:49.8]} 40... Ra1 {[%clk 0:01:17]} 41. Kd4 {[%clk 0:00:48.3]} 41...
Kf5 {[%clk 0:01:13.3]} 42. c4 {[%clk 0:00:42.4]} 42... bxc3 {[%clk 0:01:10.1]}
43. Kxc3 {[%clk 0:00:42.2]} 43... Rg1 {[%clk 0:01:09.5]} 44. Kd4 {[%clk
0:00:27.4]} 44... Rxg3 {[%clk 0:01:07]} 45. Rf2 {[%clk 0:00:26.5]} 45... g6
{[%clk 0:00:59.2]} 46. Kc5 {[%clk 0:00:25.8]} 46... Rg4 {[%clk 0:00:53.9]} 47.
Kd6 {[%clk 0:00:18]} 47... Rxh4 {[%clk 0:00:51.8]} 48. a3 {[%clk 0:00:15.9]}
48... Rxf4 {[%clk 0:00:47.7]} 49. Rxf4+ {[%clk 0:00:14.7]} 49... Kxf4 {[%clk
0:00:48.6]} 50. Kxe6 {[%clk 0:00:15]} 50... d4 {[%clk 0:00:49.2]} 51. Kf7 {[%clk
0:00:12.2]} 51... d3 {[%clk 0:00:49.5]} 52. e6 {[%clk 0:00:13]} 52... d2 {[%clk
0:00:50.1]} 53. e7 {[%clk 0:00:13.9]} 53... d1=Q {[%clk 0:00:50.7]} 54. e8=Q
{[%clk 0:00:13.9]} 54... g5 {[%clk 0:00:31.7]} 55. Qb8+ {[%clk 0:00:12.3]} 55...
Kf3 {[%clk 0:00:25.8]} 56. Qb7+ {[%clk 0:00:11]} 56... Kg3 {[%clk 0:00:23.3]}
57. Qc7+ {[%clk 0:00:10.6]} 57... Kg4 {[%clk 0:00:22.1]} 58. Qxa5 {[%clk
0:00:09.2]} 58... h4 {[%clk 0:00:20.9]} 59. Qb4+ {[%clk 0:00:08]} 59... Kg3
{[%clk 0:00:18.8]} 60. a4 {[%clk 0:00:06.5]} 60... Qf3+ {[%clk 0:00:18.6]} 61.
Kg6 {[%clk 0:00:05.4]} 61... g4 {[%clk 0:00:19.2]} 62. a5 {[%clk 0:00:04.5]}
62... h3 {[%clk 0:00:19.4]} 63. Qd6+ {[%clk 0:00:02.6]} 63... Kg2 {[%clk
0:00:19.7]} 64. a6 {[%clk 0:00:01.1]} 64... h2 {[%clk 0:00:16.6]} 0-1

[Event "*** Titled Tuesday Blitz"]
[Site "Chess.com"]
[Date "2020.04.28"]
[Round "7"]
[White "pawel83"]
[Black "monstertube"]
[Result "1-0"]
[WhiteElo "2339"]
[BlackElo "2147"]
[TimeControl "180+1"]
[EndTime "11:19:34 PDT"]
[Termination "pawel83 won by checkmate"]

1. d4 {[%clk 0:03:00.9]} 1... d5 {[%clk 0:02:58.3]} 2. Nf3 {[%clk 0:03:00.4]}
2... Nf6 {[%clk 0:02:56.4]} 3. Nbd2 {[%clk 0:02:58.7]} 3... Bf5 {[%clk
0:02:53.5]} 4. e3 {[%clk 0:02:59.1]} 4... e6 {[%clk 0:02:53.7]} 5. Be2 {[%clk
0:02:57.2]} 5... Be7 {[%clk 0:02:53.3]} 6. O-O {[%clk 0:02:57.1]} 6... O-O
{[%clk 0:02:52.9]} 7. b3 {[%clk 0:02:57.4]} 7... h6 {[%clk 0:02:52.6]} 8. Bb2
{[%clk 0:02:57.9]} 8... c5 {[%clk 0:02:50.4]} 9. Ne5 {[%clk 0:02:52]} 9... Nc6
{[%clk 0:02:49.8]} 10. Nxc6 {[%clk 0:02:47.5]} 10... bxc6 {[%clk 0:02:49.6]} 11.
Nf3 {[%clk 0:02:47.9]} 11... Qc7 {[%clk 0:02:38.3]} 12. Bd3 {[%clk 0:02:47.3]}
12... Ne4 {[%clk 0:02:35.8]} 13. Nd2 {[%clk 0:02:41.9]} 13... Nxd2 {[%clk
0:02:31.7]} 14. Qxd2 {[%clk 0:02:41.7]} 14... Bxd3 {[%clk 0:02:30.5]} 15. Qxd3
{[%clk 0:02:40.1]} 15... Bf6 {[%clk 0:02:26.7]} 16. Ba3 {[%clk 0:02:36.1]} 16...
Be7 {[%clk 0:02:06.6]} 17. Bxc5 {[%clk 0:02:34.6]} 17... Bxc5 {[%clk 0:02:03.1]}
18. dxc5 {[%clk 0:02:34.7]} 18... a5 {[%clk 0:02:01.6]} 19. e4 {[%clk
0:02:23.7]} 19... Qf4 {[%clk 0:01:43.7]} 20. exd5 {[%clk 0:02:20.6]} 20... exd5
{[%clk 0:01:43.4]} 21. g3 {[%clk 0:02:16]} 21... Qf6 {[%clk 0:01:42.2]} 22. a4
{[%clk 0:02:13.8]} 22... Rfb8 {[%clk 0:01:39.1]} 23. Rae1 {[%clk 0:02:11]} 23...
Rb4 {[%clk 0:01:38.9]} 24. Re3 {[%clk 0:02:06.7]} 24... Rd4 {[%clk 0:01:38.4]}
25. Qc3 {[%clk 0:02:05.9]} 25... Rb8 {[%clk 0:01:17.8]} 26. Rfe1 {[%clk
0:01:59.1]} 26... Rbb4 {[%clk 0:01:16.9]} 27. Rf3 {[%clk 0:01:51]} 27... Qg6
{[%clk 0:01:14.2]} 28. Kg2 {[%clk 0:01:48.2]} 28... Kh7 {[%clk 0:01:12.9]} 29.
Re7 {[%clk 0:01:45.8]} 29... f6 {[%clk 0:01:11.8]} 30. Ra7 {[%clk 0:01:37.1]}
30... Rd1 {[%clk 0:01:02.7]} 31. Rxa5 {[%clk 0:01:34.9]} 31... Rbd4 {[%clk
0:01:02.4]} 32. Ra8 {[%clk 0:01:24.6]} 32... Re4 {[%clk 0:00:53]} 33. Rd3 {[%clk
0:01:13.6]} 33... Rc1 {[%clk 0:00:39.4]} 34. Re3 {[%clk 0:01:10.7]} 34... Rxe3
{[%clk 0:00:32]} 35. Qxe3 {[%clk 0:01:09.6]} 35... Rxc2 {[%clk 0:00:29.8]} 36.
a5 {[%clk 0:01:01.9]} 36... Ra2 {[%clk 0:00:28.7]} 37. a6 {[%clk 0:01:01.9]}
37... Ra1 {[%clk 0:00:28.9]} 38. a7 {[%clk 0:00:49.8]} 38... Qb1 {[%clk
0:00:28.4]} 39. Qe2 {[%clk 0:00:40.1]} 39... Qh1+ {[%clk 0:00:22.7]} 40. Kh3
{[%clk 0:00:39.6]} 40... Qb1 {[%clk 0:00:23.6]} 41. Qg4 {[%clk 0:00:28.6]} 41...
Ra2 {[%clk 0:00:14.4]} 42. Qf3 {[%clk 0:00:24.9]} 42... Ra1 {[%clk 0:00:09.6]}
43. b4 {[%clk 0:00:15.9]} 43... Ra2 {[%clk 0:00:06.6]} 44. g4 {[%clk 0:00:14.7]}
44... Qf1+ {[%clk 0:00:06]} 45. Kh4 {[%clk 0:00:14.1]} 45... Qb1 {[%clk
0:00:03.9]} 46. Qf5+ {[%clk 0:00:13.3]} 46... Qxf5 {[%clk 0:00:03]} 47. gxf5
{[%clk 0:00:12.8]} 47... Ra4 {[%clk 0:00:02.8]} 48. Kg3 {[%clk 0:00:11.8]} 48...
Ra3+ {[%clk 0:00:02.8]} 49. f3 {[%clk 0:00:10.4]} 49... h5 {[%clk 0:00:02.7]}
50. b5 {[%clk 0:00:10.5]} 50... cxb5 {[%clk 0:00:02.2]} 51. c6 {[%clk
0:00:10.5]} 51... d4 {[%clk 0:00:01.7]} 52. c7 {[%clk 0:00:10.5]} 52... Rc3
{[%clk 0:00:01.8]} 53. c8=Q {[%clk 0:00:10.1]} 53... Rxc8 {[%clk 0:00:02.7]} 54.
Rxc8 {[%clk 0:00:10.1]} 54... d3 {[%clk 0:00:03.6]} 55. a8=Q {[%clk 0:00:09.9]}
55... d2 {[%clk 0:00:04.5]} 56. Rh8# {[%clk 0:00:09.9]} 1-0

[Event "*** Titled Tuesday Blitz"]
[Site "Chess.com"]
[Date "2020.04.28"]
[Round "7"]
[White "Duhless"]
[Black "djamir"]
[Result "1-0"]
[WhiteElo "3089"]
[BlackElo "2729"]
[TimeControl "180+1"]
[EndTime "11:19:36 PDT"]
[Termination "Duhless won by resignation"]

1. d4 {[%clk 0:03:00.9]} 1... Nf6 {[%clk 0:02:59.8]} 2. c4 {[%clk 0:03:01]} 2...
e6 {[%clk 0:03:00.3]} 3. Nf3 {[%clk 0:03:01.4]} 3... Bb4+ {[%clk 0:03:00.1]} 4.
Nbd2 {[%clk 0:02:59.8]} 4... b6 {[%clk 0:03:00.2]} 5. a3 {[%clk 0:03:00]} 5...
Bxd2+ {[%clk 0:02:59.5]} 6. Qxd2 {[%clk 0:02:53.8]} 6... Bb7 {[%clk 0:03:00.4]}
7. e3 {[%clk 0:02:52.2]} 7... O-O {[%clk 0:03:00]} 8. Be2 {[%clk 0:02:51.6]}
8... d6 {[%clk 0:03:00.4]} 9. b4 {[%clk 0:02:50.3]} 9... Nbd7 {[%clk 0:02:59.7]}
10. Bb2 {[%clk 0:02:50.2]} 10... Qe7 {[%clk 0:03:00.1]} 11. Qc2 {[%clk
0:02:46.2]} 11... c5 {[%clk 0:02:56.2]} 12. O-O {[%clk 0:02:42.4]} 12... Rfd8
{[%clk 0:02:54.6]} 13. Rfd1 {[%clk 0:02:41.4]} 13... Rac8 {[%clk 0:02:53.7]} 14.
Rac1 {[%clk 0:02:40.3]} 14... Nf8 {[%clk 0:02:51.8]} 15. bxc5 {[%clk 0:02:36.6]}
15... dxc5 {[%clk 0:02:43.4]} 16. Ne5 {[%clk 0:02:31.7]} 16... Ng6 {[%clk
0:02:41.9]} 17. dxc5 {[%clk 0:02:27.9]} 17... Qxc5 {[%clk 0:02:35.3]} 18. Nxg6
{[%clk 0:02:23.2]} 18... hxg6 {[%clk 0:02:36.2]} 19. a4 {[%clk 0:02:21.2]} 19...
Qg5 {[%clk 0:02:29.8]} 20. Bf1 {[%clk 0:02:20.3]} 20... Ng4 {[%clk 0:02:20.1]}
21. h3 {[%clk 0:02:15.5]} 21... Nf6 {[%clk 0:02:07.4]} 22. Rxd8+ {[%clk
0:02:09.7]} 22... Rxd8 {[%clk 0:02:07.5]} 23. Rd1 {[%clk 0:02:10.4]} 23... Ne4
{[%clk 0:02:01.1]} 24. Rd4 {[%clk 0:01:58.1]} 24... Nc5 {[%clk 0:01:49.8]} 25.
a5 {[%clk 0:01:52.9]} 25... Qe7 {[%clk 0:01:36.6]} 26. Qd2 {[%clk 0:01:45.6]}
26... Rc8 {[%clk 0:01:36.1]} 27. axb6 {[%clk 0:01:42.2]} 27... axb6 {[%clk
0:01:33.8]} 28. Qb4 {[%clk 0:01:41.3]} 28... Qc7 {[%clk 0:01:33.6]} 29. f3
{[%clk 0:01:33.4]} 29... e5 {[%clk 0:01:32.4]} 30. Rd1 {[%clk 0:01:31.7]} 30...
f6 {[%clk 0:01:31.2]} 31. Bc3 {[%clk 0:01:25.5]} 31... Bc6 {[%clk 0:01:31.1]}
32. Be1 {[%clk 0:01:25.1]} 32... Rd8 {[%clk 0:01:29.8]} 33. Rb1 {[%clk
0:01:23.7]} 33... Rb8 {[%clk 0:01:29.8]} 34. Bf2 {[%clk 0:01:19]} 34... e4
{[%clk 0:01:26.1]} 35. f4 {[%clk 0:01:18.2]} 35... Bd7 {[%clk 0:01:10.4]} 36.
Rd1 {[%clk 0:01:09]} 36... Be6 {[%clk 0:01:10.1]} 37. Rd4 {[%clk 0:01:08.3]}
37... Ra8 {[%clk 0:01:05.6]} 38. Kh2 {[%clk 0:01:05.7]} 38... Rb8 {[%clk
0:01:02.1]} 39. Bg3 {[%clk 0:01:03.3]} 39... f5 {[%clk 0:01:02.3]} 40. Bh4
{[%clk 0:01:01.6]} 40... Kh7 {[%clk 0:00:55]} 41. Bg5 {[%clk 0:01:00.9]} 41...
Nd3 {[%clk 0:00:45.6]} 42. Qb5 {[%clk 0:00:40.5]} 42... Nc5 {[%clk 0:00:41.9]}
43. Qb1 {[%clk 0:00:38.6]} 43... Ra8 {[%clk 0:00:40.6]} 44. Qe1 {[%clk
0:00:34.7]} 44... Kg8 {[%clk 0:00:32.3]} 45. Qd1 {[%clk 0:00:31.2]} 45... Rc8
{[%clk 0:00:31.2]} 46. Rd6 {[%clk 0:00:27.9]} 46... Qf7 {[%clk 0:00:29.1]} 47.
Qd4 {[%clk 0:00:24.1]} 47... Qc7 {[%clk 0:00:25.1]} 48. Bd8 {[%clk 0:00:22.1]}
48... Rxd8 {[%clk 0:00:14.7]} 49. Rxd8+ {[%clk 0:00:21.3]} 49... Kh7 {[%clk
0:00:15.6]} 50. Qd6 {[%clk 0:00:20.9]} 50... Qf7 {[%clk 0:00:14.3]} 51. Qxb6
{[%clk 0:00:19.4]} 51... Nd3 {[%clk 0:00:12.8]} 52. Qb8 {[%clk 0:00:16.4]} 52...
g5 {[%clk 0:00:12.7]} 53. fxg5 {[%clk 0:00:16.1]} 53... Bxc4 {[%clk 0:00:11.8]}
54. Rd6 {[%clk 0:00:11.5]} 54... Be6 {[%clk 0:00:11.2]} 55. Bxd3 {[%clk
0:00:08.7]} 55... exd3 {[%clk 0:00:11.2]} 56. Rxd3 {[%clk 0:00:09.3]} 56... Bd5
{[%clk 0:00:09.6]} 57. Qf4 {[%clk 0:00:07.9]} 57... Be4 {[%clk 0:00:09]} 58.
Qh4+ {[%clk 0:00:07.6]} 58... Kg6 {[%clk 0:00:04.9]} 59. Rd6+ {[%clk 0:00:07.3]}
1-0